fUSD/lending_fUSD_20250826
["ID","MTS","AMOUNT","RATE_DAILY","PERIOD"]
[381480202,1756230686315,-1529.6,0.00027397,5]
[381480203,1756230686431,-158.692368,0.00027397,7]
[381480204,1756230686440,-400.0,0.00027397,5]
[381480205,1756230686450,-681.18,0.00027397,5]
[381480206,1756230686459,-1214.51,0.00027397,5]
[381480207,1756230686468,-1218.74,0.00027397,5]
[381480208,1756230686477,-151.0,0.00027397,7]
[381480209,1756230686486,-176.842669,0.00027397,7]
[381480210,1756230686496,-846.41,0.00027397,5]
[381480211,1756230686505,-870.23,0.00027397,5]
[381480212,1756230686514,-864.305514,0.00027397,7]
[381480213,1756230686523,-2660.08,0.00027397,5]
[381480214,1756230686532,-935.16,0.00027397,5]
[381480215,1756230686541,-158.692368,0.00027397,7]
[381480216,1756230686550,-1268.24,0.00027397,5]
[381480217,1756230686560,-400.0,0.00027397,5]
[381480218,1756230686569,-864.305522,0.00027397,7]
[381480219,1756230686579,-403.41801762,0.00027397,5]
[381480220,1756230686587,-158.692364,0.00027397,7]
[381480221,1756230686597,-960.42,0.00027397,5]
[381480222,1756230686606,-151.0,0.00027397,7]
[381480223,1756230686614,-727.24,0.00027397,5]
[381480224,1756230686624,-836.11,0.00027397,5]
[381480225,1756230686633,-400.0,0.00027397,5]
[381480226,1756230686643,-400.0,0.00027397,5]
[381480227,1756230686653,-400.0,0.00027397,5]
[381480228,1756230686665,-682.0,0.00027397,5]
[381480229,1756230686675,-1206.86,0.00027397,5]
[381480230,1756230686684,-400.0,0.00027397,5]
[381480231,1756230686696,-696.66,0.00027397,5]
[381480232,1756230686706,-5333.52,0.00027397,5]
[381480233,1756230686715,-512.28436621,0.00027397,2]
[381480234,1756230686726,-1646.5,0.00027397,5]
[381480235,1756230686736,-6581.236368,0.00027397,7]
[381480236,1756230686747,-400.0,0.00027397,5]
[381480237,1756230686756,-446.0,0.00027397,5]
[381480238,1756230686765,-400.0,0.00027397,5]
[381480239,1756230686774,-400.0,0.00027397,5]
[381480240,1756230686783,-604.92,0.00027397,5]
[381480241,1756230686792,-400.0,0.00027397,2]
[381480242,1756230686801,-6581.236368,0.00027397,7]
[381480243,1756230686810,-400.09037392,0.00027397,5]
[381480244,1756230686820,-859.49,0.00027397,5]
[381480245,1756230686829,-1578.12,0.00027397,5]
[381480246,1756230686841,-928.83,0.00027397,5]
[381480247,1756230686850,-6581.236368,0.00027397,7]
[381480248,1756230686859,-402.244264,0.00027397,7]
[381480249,1756230686869,-151.0,0.00027397,7]
[381480250,1756230686878,-669.63,0.00027397,5]
[381480251,1756230686887,-498.691569,0.00027397,7]
[381480252,1756230686897,-714.94,0.00027397,5]
[381480253,1756230686908,-752.58,0.00027397,5]
[381480254,1756230686917,-400.0,0.00027397,5]
[381480255,1756230686927,-1272.58,0.00027397,5]
[381480256,1756230686936,-400.0,0.00027397,5]
[381480257,1756230686946,-402.244264,0.00027397,7]
[381480258,1756230686955,-1760.456621,0.00027397,7]
[381480259,1756230686965,-400.0,0.00027397,5]
[381480260,1756230686975,-6581.236378,0.00027397,7]
[381480261,1756230686987,-636.63,0.00027397,5]
[381480262,1756230687002,-400.0,0.00027397,5]
[381480263,1756230687013,-400.0,0.00027397,2]
[381480264,1756230687023,-498.691569,0.00027397,7]
[381480265,1756230687033,-544.21,0.00027397,5]
[381480266,1756230687042,-402.244264,0.00027397,7]
[381480267,1756230687052,-1760.456621,0.00027397,7]
[381480268,1756230687063,-498.691569,0.00027397,7]
[381480269,1756230687072,-440.090666,0.00027397,7]
[381480270,1756230687084,-402.244266,0.00027397,7]
[381480271,1756230687095,-1760.456621,0.00027397,7]
[381480272,1756230687105,-400.0,0.00027397,5]
[381480273,1756230687117,-683.817013,0.00027397,7]
[381480274,1756230687126,-400.0,0.00027397,5]
[381480275,1756230687137,-440.090666,0.00027397,7]
[381480276,1756230687147,-525.95,0.00027397,5]
[381480277,1756230687158,-760.31,0.00027397,5]
[381480278,1756230687167,-498.691563,0.00027397,7]
[381480279,1756230687176,-1760.456615,0.00027397,7]
[381480280,1756230687185,-683.817013,0.00027397,7]
[381480281,1756230687196,-1703.78,0.00027397,5]
[381480282,1756230687206,-440.090666,0.00027397,7]
[381480283,1756230687216,-400.0,0.00027397,5]
[381480284,1756230687225,-607.66,0.00027397,5]
[381480285,1756230687236,-1131.21,0.00027397,16]
[381480286,1756230687246,-388.88,0.00027397,80]
[381480287,1756230687255,-151.0,0.00027397,7]
[381480288,1756230687264,-151.0,0.00027397,7]
[381480289,1756230687273,-151.0,0.00027397,7]
[381480290,1756230687284,-151.0,0.00027397,7]
[381480291,1756230687293,-151.0,0.00027397,7]
[381480292,1756230687303,-151.0,0.00027397,7]
[381480293,1756230687313,-151.0,0.00027397,7]
[381480294,1756230687323,-151.0,0.00027397,7]
[381480295,1756230687333,-151.0,0.00027397,7]
[381480296,1756230687343,-151.0,0.00027397,7]
[381480297,1756230687353,-151.0,0.00027397,7]
[381480298,1756230687364,-274.000209,0.00027397,7]
[381480299,1756230687373,-300.0,0.00027397,2]
[381480300,1756230687383,-151.482849,0.00027397,7]
[381480301,1756230687393,-18591.98,0.00027397,2]
[381480302,1756230687403,-200.0,0.00027397,5]
[381480303,1756230687413,-155.05657824,0.00027397,5]
[381480304,1756230687422,-155.9612237,0.00027397,5]
[381480305,1756230687433,-151.16,0.00027397,2]
[381480306,1756230687444,-150.0,0.00027485,2]
[381480307,1756230687454,-196.60249995,0.000275,2]
[381480308,1756230687463,-536.98561318,0.000275,2]
[381480309,1756230687473,-394.74764,0.000275,7]
[381480310,1756230687483,-394.74764,0.000275,7]
[381480311,1756230687492,-394.74764,0.000275,7]
[381480312,1756230687501,-151.0,0.000275,7]
[381480313,1756230687511,-394.74764,0.000275,7]
[381480314,1756230687521,-151.0,0.000275,7]
[381480315,1756230687531,-151.0,0.000275,7]
[381480316,1756230687541,-154.23009,0.000275,7]
[381480317,1756230687551,-268.675449,0.000275,7]
[381480318,1756230687561,-151.0,0.000275,7]
[381480319,1756230687571,-151.0,0.000275,7]
[381480320,1756230687582,-259.626228,0.000275,7]
[381480321,1756230687592,-151.0,0.000275,7]
[381480322,1756230687602,-151.0,0.000275,7]
[381480323,1756230687611,-151.0,0.000275,7]
[381480324,1756230687622,-184.71052,0.000275,7]
[381480325,1756230687631,-151.0,0.000275,7]
[381480326,1756230687641,-151.0,0.000275,7]
[381480327,1756230687652,-151.0,0.000275,7]
[381480328,1756230687666,-151.0,0.000275,7]
[381480329,1756230687676,-151.0,0.000275,7]
[381480330,1756230687686,-275.802423,0.000275,7]
[381480331,1756230687698,-490.731049,0.000275,7]
[381480332,1756230687707,-490.731049,0.000275,7]
[381480333,1756230687716,-490.731049,0.000275,7]
[381480334,1756230687725,-490.731049,0.000275,7]
[381480335,1756230687737,-938.26,0.00027534,2]
[381480336,1756230687746,-1000.0,0.00027549,2]
[381480337,1756230687755,-1425.0,0.00027562,2]
[381480338,1756230687764,-1500.0,0.00027569,7]
[381480339,1756230687774,-204.83716545,0.0002757,2]
[381480340,1756230687783,-30372.91,0.000276,2]
[381480341,1756230687793,-150.0,0.00027608,7]
[381480342,1756230687802,-319.48991129,0.00027612,5]
[381480343,1756230687812,-1425.0,0.00027627,2]
[381480344,1756230687822,-150.0,0.00027656,2]
[381480345,1756230687831,-1142.86,0.0002767,5]
[381480346,1756230687840,-228.882476,0.0002767,7]
[381480347,1756230687849,-151.0,0.0002767,7]
[381480348,1756230687858,-228.882476,0.0002767,7]
[381480349,1756230687867,-190.692182,0.0002767,7]
[381480350,1756230687877,-228.882476,0.0002767,7]
[381480351,1756230687887,-228.882476,0.0002767,7]
[381480352,1756230687896,-151.0,0.0002767,7]
[381480353,1756230687905,-151.0,0.0002767,7]
[381480354,1756230687914,-273.123243,0.0002767,7]
[381480355,1756230687923,-151.0,0.0002767,7]
[381480356,1756230687932,-273.123243,0.0002767,7]
[381480357,1756230687942,-151.0,0.0002767,7]
[381480358,1756230687951,-273.123243,0.0002767,7]
[381480359,1756230687960,-154.320708,0.0002767,7]
[381480360,1756230687970,-273.123243,0.0002767,7]
[381480361,1756230687980,-151.0,0.0002767,7]
[381480362,1756230687992,-239.854822,0.0002767,7]
[381480363,1756230688002,-1254.63,0.0002767,5]
[381480364,1756230688012,-1057.93,0.0002767,5]
[381480365,1756230688022,-1079.24,0.0002767,5]
[381480366,1756230688031,-3055.95,0.0002767,5]
[381480367,1756230688041,-1650.32,0.0002767,5]
[381480368,1756230688050,-13513.14,0.0002767,5]
[381480369,1756230688060,-2253.65,0.0002767,5]
[381480370,1756230688069,-1270.75,0.0002767,5]
[381480371,1756230688079,-151.0,0.0002767,7]
[381480372,1756230688089,-234.561032,0.0002767,7]
[381480373,1756230688099,-151.0,0.0002767,7]
[381480374,1756230688108,-151.0,0.0002767,7]
[381480375,1756230688118,-151.0,0.0002767,7]
[381480376,1756230688128,-151.0,0.0002767,7]
[381480377,1756230688137,-151.0,0.0002767,7]
[381480378,1756230688147,-2157.11,0.0002767,5]
[381480379,1756230688155,-151.0,0.0002767,7]
[381480380,1756230688165,-151.0,0.0002767,7]
[381480381,1756230688175,-1950.58,0.0002767,5]
[381480382,1756230688184,-1356.06,0.0002767,5]
[381480383,1756230688197,-1314.24,0.0002767,5]
[381480384,1756230688206,-1468.69,0.0002767,5]
[381480385,1756230688215,-809.74,0.0002767,5]
[381480386,1756230688225,-1206.09,0.0002767,5]
[381480387,1756230688235,-741.88,0.0002767,5]
[381480388,1756230688244,-1611.27,0.0002767,5]
[381480389,1756230688254,-1224.97,0.0002767,5]
[381480390,1756230688263,-1049.32,0.0002767,5]
[381480391,1756230688274,-976.61,0.0002767,5]
[381480392,1756230688283,-1611.56,0.0002767,5]
[381480393,1756230688294,-869.98,0.0002767,5]
[381480394,1756230688303,-1131.94,0.0002767,5]
[381480395,1756230688316,-782.57,0.0002767,5]
[381480396,1756230688326,-1548.86,0.0002767,5]
[381480397,1756230688336,-1331.02,0.0002767,5]
[381480398,1756230688346,-1391.3,0.0002767,5]
[381480399,1756230688356,-1191.31,0.0002767,5]
[381480400,1756230688365,-1107.49,0.0002767,5]
[381480401,1756230688375,-1320.74,0.0002767,5]
[381480402,1756230688386,-1054.46,0.0002767,5]
[381480403,1756230688395,-400.0,0.0002767,5]
[381480404,1756230688405,-1150.33,0.0002767,5]
[381480405,1756230688416,-819.86,0.0002767,5]
[381480406,1756230688426,-400.0,0.0002767,5]
[381480407,1756230688435,-933.75,0.0002767,5]
[381480408,1756230688446,-1547.78,0.0002767,5]
[381480409,1756230688455,-1438.18,0.0002767,5]
[381480410,1756230688464,-6789.96,0.0002767,5]
[381480411,1756230688473,-1497.03,0.0002767,5]
[381480412,1756230688482,-1497.12,0.0002767,5]
[381480413,1756230688492,-400.0,0.0002767,5]
[381480414,1756230688501,-863.08,0.0002767,5]
[381480415,1756230688511,-753.29,0.0002767,5]
[381480416,1756230688522,-787.78,0.0002767,5]
[381480417,1756230688531,-1613.31,0.0002767,5]
[381480418,1756230688540,-773.75,0.0002767,5]
[381480419,1756230688550,-357.829217,0.0002767,7]
[381480420,1756230688559,-1598.099305,0.0002767,7]
[381480421,1756230688569,-357.829217,0.0002767,7]
[381480422,1756230688578,-1598.099305,0.0002767,7]
[381480423,1756230688588,-357.829217,0.0002767,7]
[381480424,1756230688597,-586.3,0.0002767,5]
[381480425,1756230688606,-1598.099305,0.0002767,7]
[381480426,1756230688616,-195.588872,0.0002767,7]
[381480427,1756230688625,-570.489081,0.0002767,7]
[381480428,1756230688634,-1598.099305,0.0002767,7]
[381480429,1756230688644,-195.588872,0.0002767,7]
[381480430,1756230688657,-570.489081,0.0002767,7]
[381480431,1756230688666,-357.82921,0.0002767,7]
[381480432,1756230688676,-190.628852,0.0002767,7]
[381480433,1756230688685,-570.489081,0.0002767,7]
[381480434,1756230688699,-195.588872,0.0002767,7]
[381480435,1756230688707,-190.628852,0.0002767,7]
[381480436,1756230688717,-151.0,0.0002767,7]
[381480437,1756230688727,-195.588868,0.0002767,7]
[381480438,1756230688736,-570.489077,0.0002767,7]
[381480439,1756230688745,-530.09,0.0002767,5]
[381480440,1756230688754,-151.0,0.0002767,7]
[381480441,1756230688763,-151.0,0.0002767,7]
[381480442,1756230688773,-190.628852,0.0002767,7]
[381480443,1756230688782,-151.0,0.0002767,7]
[381480444,1756230688791,-151.0,0.0002767,7]
[381480445,1756230688800,-234.169077,0.0002767,7]
[381480446,1756230688810,-151.0,0.0002767,7]
[381480447,1756230688819,-190.628862,0.0002767,7]
[381480448,1756230688829,-336.675498,0.0002767,7]
[381480449,1756230688838,-234.169077,0.0002767,7]
[381480450,1756230688847,-403.670401,0.0002767,7]
[381480451,1756230688856,-151.0,0.0002767,7]
[381480452,1756230688865,-336.675498,0.0002767,7]
[381480453,1756230688874,-403.670401,0.0002767,7]
[381480454,1756230688884,-234.169077,0.0002767,7]
[381480455,1756230688893,-151.0,0.0002767,7]
[381480456,1756230688903,-336.675498,0.0002767,7]
[381480457,1756230688912,-403.670401,0.0002767,7]
[381480458,1756230688921,-234.169085,0.0002767,7]
[381480459,1756230688931,-618.838378,0.0002767,7]
[381480460,1756230688940,-336.675494,0.0002767,7]
[381480461,1756230688951,-403.670402,0.0002767,7]
[381480462,1756230688960,-618.838378,0.0002767,7]
[381480463,1756230688969,-618.838378,0.0002767,7]
[381480464,1756230688978,-618.838384,0.0002767,7]
[381480465,1756230688988,-218.939648,0.0002767,7]
[381480466,1756230688998,-218.939648,0.0002767,7]
[381480467,1756230689008,-218.939648,0.0002767,7]
[381480468,1756230689018,-1037.63,0.0002767,5]
[381480469,1756230689027,-218.939645,0.0002767,7]
[381480470,1756230689036,-157.197571,0.0002767,7]
[381480471,1756230689045,-157.197571,0.0002767,7]
[381480472,1756230689055,-1217.55,0.0002767,5]
[381480473,1756230689064,-157.197571,0.0002767,7]
[381480474,1756230689073,-157.197578,0.0002767,7]
[381480475,1756230689082,-1228.91,0.0002767,5]
[381480476,1756230689092,-452.273707,0.0002767,7]
[381480477,1756230689101,-151.0,0.0002767,7]
[381480478,1756230689110,-400.0,0.0002767,5]
[381480479,1756230689119,-152.678473,0.0002767,7]
[381480480,1756230689130,-452.273707,0.0002767,7]
[381480481,1756230689139,-452.273707,0.0002767,7]
[381480482,1756230689149,-151.0,0.0002767,7]
[381480483,1756230689159,-1141.77,0.0002767,5]
[381480484,1756230689168,-452.273716,0.0002767,7]
[381480485,1756230689178,-151.0,0.0002767,7]
[381480486,1756230689187,-151.0,0.0002767,7]
[381480487,1756230689198,-151.0,0.0002767,7]
[381480488,1756230689207,-692.436487,0.0002767,7]
[381480489,1756230689216,-692.436487,0.0002767,7]
[381480490,1756230689225,-1590.13,0.0002767,5]
[381480491,1756230689235,-692.436487,0.0002767,7]
[381480492,1756230689244,-692.436487,0.0002767,7]
[381480493,1756230689253,-151.0,0.0002767,7]
[381480494,1756230689265,-924.3,0.0002767,5]
[381480495,1756230689273,-151.0,0.0002767,7]
[381480496,1756230689283,-380.392524,0.0002767,7]
[381480497,1756230689291,-182.378069,0.0002767,7]
[381480498,1756230689300,-380.392524,0.0002767,7]
[381480499,1756230689310,-151.0,0.0002767,7]
[381480500,1756230689319,-182.378069,0.0002767,7]
[381480501,1756230689328,-380.392524,0.0002767,7]
[381480502,1756230689337,-182.378069,0.0002767,7]
[381480503,1756230689346,-151.0,0.0002767,7]
[381480504,1756230689355,-380.392526,0.0002767,7]
[381480505,1756230689364,-151.0,0.0002767,7]
[381480506,1756230689373,-182.37806,0.0002767,7]
[381480507,1756230689383,-1613.60652,0.0002767,7]
[381480508,1756230689392,-1613.60652,0.0002767,7]
[381480509,1756230689401,-180.876898,0.0002767,7]
[381480510,1756230689411,-1613.60652,0.0002767,7]
[381480511,1756230689420,-151.0,0.0002767,7]
[381480512,1756230689429,-575.23,0.0002767,5]
[381480513,1756230689438,-545.148881,0.0002767,7]
[381480514,1756230689451,-180.876898,0.0002767,7]
[381480515,1756230689461,-1003.96199,0.0002767,7]
[381480516,1756230689470,-664.99,0.0002767,5]
[381480517,1756230689479,-545.148881,0.0002767,7]
[381480518,1756230689489,-1613.606527,0.0002767,7]
[381480519,1756230689498,-793.535749,0.0002767,7]
[381480520,1756230689508,-180.876898,0.0002767,7]
[381480521,1756230689517,-1003.96199,0.0002767,7]
[381480522,1756230689527,-545.148881,0.0002767,7]
[381480523,1756230689536,-793.535749,0.0002767,7]
[381480524,1756230689545,-180.876892,0.0002767,7]
[381480525,1756230689555,-1003.96199,0.0002767,7]
[381480526,1756230689564,-545.148878,0.0002767,7]
[381480527,1756230689574,-793.535749,0.0002767,7]
[381480528,1756230689583,-1003.96198,0.0002767,7]
[381480529,1756230689593,-778.5,0.0002767,5]
[381480530,1756230689602,-208.205594,0.0002767,7]
[381480531,1756230689614,-793.535741,0.0002767,7]
[381480532,1756230689623,-208.205594,0.0002767,7]
[381480533,1756230689632,-1457.28,0.0002767,5]
[381480534,1756230689644,-208.205594,0.0002767,7]
[381480535,1756230689656,-724.45,0.0002767,5]
[381480536,1756230689669,-208.205594,0.0002767,7]
[381480537,1756230689679,-847.97,0.0002767,5]
[381480538,1756230689689,-195.941037,0.0002767,7]
[381480539,1756230689701,-195.941037,0.0002767,7]
[381480540,1756230689711,-151.0,0.0002767,7]
[381480541,1756230689720,-195.941037,0.0002767,7]
[381480542,1756230689731,-151.0,0.0002767,7]
[381480543,1756230689743,-151.0,0.0002767,7]
[381480544,1756230689752,-195.941029,0.0002767,7]
[381480545,1756230689762,-500.0,0.0002767,5]
[381480546,1756230689772,-630.74,0.0002767,5]
[381480547,1756230689782,-1505.52,0.0002767,5]
[381480548,1756230689792,-455.096171,0.0002767,7]
[381480549,1756230689802,-455.096171,0.0002767,7]
[381480550,1756230689812,-151.0,0.0002767,7]
[381480551,1756230689821,-455.096171,0.0002767,7]
[381480552,1756230689831,-717.92,0.0002767,5]
[381480553,1756230689841,-455.096173,0.0002767,7]
[381480554,1756230689851,-151.0,0.0002767,7]
[381480555,1756230689861,-151.0,0.0002767,7]
[381480556,1756230689871,-151.0,0.0002767,7]
[381480557,1756230689882,-884.464595,0.0002767,7]
[381480558,1756230689892,-270.33098,0.0002767,7]
[381480559,1756230689903,-210.827376,0.0002767,7]
[381480560,1756230689912,-884.464595,0.0002767,7]
[381480561,1756230689922,-884.464595,0.0002767,7]
[381480562,1756230689932,-230.826304,0.0002767,7]
[381480563,1756230689943,-884.464599,0.0002767,7]
[381480564,1756230689952,-230.826304,0.0002767,7]
[381480565,1756230689963,-230.826304,0.0002767,7]
[381480566,1756230689974,-230.826299,0.0002767,7]
[381480567,1756230689983,-431.96,0.0002767,5]
[381480568,1756230689994,-151.0,0.0002767,7]
[381480569,1756230690003,-1179.57,0.0002767,5]
[381480570,1756230690014,-1699.29,0.0002767,5]
[381480571,1756230690024,-628.02,0.0002767,5]
[381480572,1756230690034,-854.23,0.0002767,5]
[381480573,1756230690044,-1139.37,0.0002767,5]
[381480574,1756230690054,-480.43,0.0002767,5]
[381480575,1756230690063,-683.47,0.0002767,5]
[381480576,1756230690072,-1228.89,0.0002767,5]
[381480577,1756230690081,-1726.59268535,0.00027671,2]
[381480578,1756230690092,-10017.27618815,0.00027671,2]
[381480579,1756230690102,-400.0,0.00027671,5]
[381480580,1756230690111,-1156.63,0.00027671,5]
[381480581,1756230690122,-400.0,0.00027671,5]
[381480582,1756230690132,-814.45,0.00027671,5]
[381480583,1756230690142,-400.0,0.00027671,5]
[381480584,1756230690154,-1203.77,0.00027671,5]
[381480585,1756230690164,-400.0,0.00027671,5]
[381480586,1756230690174,-400.0,0.00027671,5]
[381480587,1756230690183,-400.0,0.00027671,5]
[381480588,1756230690194,-400.0,0.00027671,5]
[381480589,1756230690204,-677.3,0.00027671,5]
[381480590,1756230690214,-1373.11,0.00027671,5]
[381480591,1756230690223,-412.27,0.00027671,5]
[381480592,1756230690233,-400.0,0.00027671,5]
[381480593,1756230690243,-400.0,0.00027671,5]
[381480594,1756230690254,-466.37,0.00027671,5]
[381480595,1756230690264,-884.22,0.00027671,5]
[381480596,1756230690273,-400.0,0.00027671,5]
[381480597,1756230690283,-579.9,0.00027671,5]
[381480598,1756230690292,-400.0,0.00027671,5]
[381480599,1756230690302,-716.72,0.00027671,5]
[381480600,1756230690311,-400.0,0.00027671,5]
[381480601,1756230690321,-400.0,0.00027671,5]
[381480602,1756230690330,-400.0,0.00027671,5]
[381480603,1756230690341,-503.27,0.00027671,5]
[381480604,1756230690353,-400.0,0.00027671,5]
[381480605,1756230690363,-400.0,0.00027671,5]
[381480606,1756230690373,-400.0,0.00027671,5]
[381480607,1756230690383,-783.4,0.00027671,5]
[381480608,1756230690396,-400.0,0.00027671,5]
[381480609,1756230690406,-400.0,0.00027671,5]
[381480610,1756230690416,-383.8921724,0.00027671,5]
[381480611,1756230690427,-400.0,0.00027671,5]
[381480612,1756230690437,-1036.02,0.00027671,5]
[381480613,1756230690449,-500.0,0.00027671,2]
[381480614,1756230690459,-473.09,0.00027671,5]
[381480615,1756230690469,-400.0,0.00027671,5]
[381480616,1756230690479,-400.0,0.00027671,5]
[381480617,1756230690490,-440.17,0.00027671,5]
[381480618,1756230690501,-1153.6,0.00027671,5]
[381480619,1756230690511,-400.0,0.00027671,5]
[381480620,1756230690522,-400.0,0.00027671,5]
[381480621,1756230690532,-985.74,0.00027671,5]
[381480622,1756230690543,-400.0,0.00027671,5]
[381480623,1756230690552,-640.2,0.00027671,5]
[381480624,1756230690563,-489.16770728,0.00027671,5]
[381480625,1756230690574,-400.0,0.00027671,5]
[381480626,1756230690584,-400.0,0.00027671,5]
[381480627,1756230690594,-400.0,0.00027671,5]
[381480628,1756230690605,-400.0,0.00027671,5]
[381480629,1756230690614,-400.0,0.00027671,5]
[381480630,1756230690625,-400.0,0.00027671,5]
[381480631,1756230690635,-712.48,0.00027671,5]
[381480632,1756230690644,-400.2209985,0.00027671,2]
[381480633,1756230690657,-400.0,0.00027671,5]
[381480634,1756230690668,-491.89094038,0.00027671,5]
[381480635,1756230690678,-400.0,0.00027671,5]
[381480636,1756230690692,-400.0,0.00027671,5]
[381480637,1756230690703,-400.0,0.00027671,2]
[381480638,1756230690713,-700.09,0.00027671,5]
[381480639,1756230690723,-400.0,0.00027671,5]
[381480640,1756230690734,-400.0,0.00027671,5]
[381480641,1756230690744,-401.05706056,0.00027671,5]
[381480642,1756230690754,-400.0,0.00027671,5]
[381480643,1756230690764,-693.81,0.00027671,5]
[381480644,1756230690774,-707.36,0.00027671,5]
[381480645,1756230690783,-406.06,0.00027671,5]
[381480646,1756230690794,-431.16,0.00027671,5]
[381480647,1756230690804,-400.0,0.00027671,5]
[381480648,1756230690814,-701.05,0.00027671,5]
[381480649,1756230690823,-400.0,0.00027671,5]
[381480650,1756230690833,-400.0,0.00027671,5]
[381480651,1756230690844,-547.99,0.00027671,5]
[381480652,1756230690854,-929.8,0.00027671,5]
[381480653,1756230690863,-400.93152044,0.00027671,5]
[381480654,1756230690873,-400.0,0.00027671,5]
[381480655,1756230690882,-400.0,0.00027671,5]
[381480656,1756230690892,-1530.59,0.00027671,5]
[381480657,1756230690902,-482.83,0.00027671,5]
[381480658,1756230690912,-400.91411038,0.00027671,5]
[381480659,1756230690922,-401.48153134,0.00027671,5]
[381480660,1756230690931,-400.0,0.00027671,5]
[381480661,1756230690942,-400.0,0.00027671,5]
[381480662,1756230690953,-490.23,0.00027671,5]
[381480663,1756230690963,-400.0,0.00027671,5]
[381480664,1756230690974,-445.31,0.00027671,5]
[381480665,1756230690983,-400.0,0.00027671,5]
[381480666,1756230690994,-1341.96,0.00027671,5]
[381480667,1756230691005,-400.0,0.00027671,5]
[381480668,1756230691014,-844.87,0.00027671,5]
[381480669,1756230691024,-613.14,0.00027671,5]
[381480670,1756230691036,-400.0,0.00027671,5]
[381480671,1756230691045,-400.0,0.00027671,5]
[381480672,1756230691055,-400.0,0.00027671,5]
[381480673,1756230691064,-400.0,0.00027671,5]
[381480674,1756230691074,-400.0,0.00027671,5]
[381480675,1756230691083,-746.97,0.00027671,5]
[381480676,1756230691093,-526.43,0.00027671,5]
[381480677,1756230691104,-1160.1,0.00027671,5]
[381480678,1756230691114,-400.0,0.00027671,5]
[381480679,1756230691123,-400.0,0.00027671,5]
[381480680,1756230691133,-400.0,0.00027671,5]
[381480681,1756230691143,-400.0,0.00027671,5]
[381480682,1756230691152,-400.0,0.00027671,5]
[381480683,1756230691162,-807.88,0.00027671,5]
[381480684,1756230691172,-1586.91,0.00027671,5]
[381480685,1756230691182,-400.0,0.00027671,5]
[381480686,1756230691192,-524.12613905,0.00027671,5]
[381480687,1756230691202,-400.0,0.00027671,5]
[381480688,1756230691211,-1509.82,0.00027671,5]
[381480689,1756230691221,-642.17,0.00027671,5]
[381480690,1756230691231,-400.0,0.00027671,5]
[381480691,1756230691240,-721.04,0.00027671,5]
[381480692,1756230691250,-507.72,0.00027671,5]
[381480693,1756230691260,-400.0,0.00027671,5]
[381480694,1756230691269,-682.86,0.00027671,5]
[381480695,1756230691279,-445.05123394,0.00027671,5]
[381480696,1756230691289,-400.0,0.00027671,5]
[381480697,1756230691299,-400.0,0.00027671,5]
[381480698,1756230691310,-400.0,0.00027671,5]
[381480699,1756230691319,-173.61911077,0.00027671,5]
[381480700,1756230691329,-793.12,0.00027671,5]
[381480701,1756230691339,-507.45,0.00027671,5]